[Event "Panevezys Elite 2018"]
[Site "Panevezys"]
[Date "2018.06.29"]
[Round "1.13"]
[White "Kalinowska, Zuzanna"]
[Black "Vicas, Marijus"]
[Result "1-0"]
[ECO "A00"]
[WhiteElo "1968"]
[BlackElo "2183"]
[Annotator "ChessBase"]
[PlyCount "107"]
[EventDate "2018.06.29"]
[EventType "swiss"]
[EventRounds "9"]
[EventCountry "LTU"]
[SourceTitle "playchess.com"]
[Source "ChessBase"]
[SourceQuality "1"]
[TimeControl "40/5400+30:1800+30"]

1. d4 Nf6 2. c4 g6 3. Nc3 d5 4. cxd5 Nxd5 5. e4 Nxc3 6. bxc3 Bg7 7. Nf3 c5 8. Be3 O-O 9. Qd2 cxd4 10. cxd4 b6 11. Rc1 Bb7 12. Bd3 Nd7 13. O-O Nf6 14. d5 Ng4 15. Bf4 f5 16. Ng5 e5 17. Ne6 Qd6 18. Rc7 Rf7 19. Rfc1 exf4 20. Rxf7 Bh6 21. Qb2 Kxf7 22. Rc7+ Kg8 23. Rg7+ Kh8 24. Rxb7+ Qe5 25. Qxe5+ Nxe5 26. Bc2 Rc8 27. exf5 Kg8 28. Rc7 Rxc7 29. Nxc7 Bf8 30. fxg6 hxg6 31. Ne6 Bd6 32. Nxf4 Nf3+ 33. gxf3 Bxf4 34. Bxg6 b5 35. h4 Kf8 36. Kf1 Ke7 37. Ke2 Kd6 38. Bf7 a5 39. Kd3 Ke5 40. h5 Bh6 41. Be8 Kxd5 42. Bxb5 Ke5 43. Bd7 Bf8 44. Kc4 Kf4 45. Kb5 Kxf3 46. Kxa5 Bc5 47. h6 Bxf2 48. h7 Bd4 49. Kb5 Kf4 50. Kc4 Bf6 51. a4 Ke5 52. Kc5 Ke4 53. a5 Bd4+ 54. Kc4 1-0

[Event "Panevezys Elite 2018"]
[Site "Panevezys"]
[Date "2018.06.30"]
[Round "2.1"]
[White "Starostits, Ilmars"]
[Black "Stremavicius, Titas"]
[Result "1/2-1/2"]
[ECO "E06"]
[WhiteElo "2449"]
[BlackElo "2448"]
[Annotator "ChessBase"]
[PlyCount "26"]
[EventDate "2018.06.29"]
[EventType "swiss"]
[EventRounds "9"]
[EventCountry "LTU"]
[SourceTitle "playchess.com"]
[Source "ChessBase"]
[SourceQuality "1"]
[TimeControl "40/5400+30:1800+30"]

1. Nf3 d5 2. d4 Nf6 3. c4 e6 4. g3 Be7 5. Bg2 O-O 6. O-O dxc4 7. Qa4 a6 8. Qxc4 b5 9. Qc2 Bb7 10. Bd2 Be4 11. Qb3 Bd5 12. Qc2 Be4 13. Qb3 Bd5 1/2-1/2

[Event "Panevezys Elite 2018"]
[Site "Panevezys"]
[Date "2018.06.30"]
[Round "2.2"]
[White "Badelka, Olga"]
[Black "Kveinys, Aloyzas"]
[Result "0-1"]
[ECO "A11"]
[WhiteElo "2407"]
[BlackElo "2537"]
[Annotator "ChessBase"]
[PlyCount "100"]
[EventDate "2018.06.29"]
[EventType "swiss"]
[EventRounds "9"]
[EventCountry "LTU"]
[SourceTitle "playchess.com"]
[Source "ChessBase"]
[SourceQuality "1"]
[TimeControl "40/5400+30:1800+30"]

1. c4 c6 2. Nf3 d5 3. e3 Nf6 4. b3 Bf5 5. Bb2 Nbd7 6. Be2 h6 7. d3 e6 8. Qc2 Be7 9. Nbd2 O-O 10. O-O Re8 11. a3 a5 12. Bc3 Bf8 13. b4 axb4 14. axb4 dxc4 15. Nxc4 Nd5 16. Rxa8 Qxa8 17. Ra1 Qb8 18. e4 Nxc3 19. Qxc3 Bg4 20. Nd4 Bxe2 21. Nxe2 Nf6 22. h3 Rd8 23. Rb1 Qc7 24. Ne5 Bd6 25. Nc4 Be7 26. Ne5 Qb6 27. Nc4 Qa6 28. Qc2 Ne8 29. Nc3 Nc7 30. Rb2 b5 31. Nd2 Qb6 32. Na2 Na6 33. Nf3 c5 34. bxc5 Bxc5 35. Rb1 b4 36. Nc1 Bd4 37. Kf1 Qb5 38. Ke2 Bf6 39. Nb3 Bc3 40. Nc1 Qd7 41. Na2 Rc8 42. Rc1 Rc7 43. Qb1 Qa4 44. Nd2 Bxd2 45. Rxc7 Nxc7 46. Kxd2 b3 47. Nc1 Qb4+ 48. Kd1 b2 49. Ne2 Qb3+ 50. Kd2 Nb5 0-1

[Event "Panevezys Elite 2018"]
[Site "Panevezys"]
[Date "2018.06.30"]
[Round "2.3"]
[White "Grib, Roman"]
[Black "Laurusas, Tomas"]
[Result "1-0"]
[ECO "B40"]
[WhiteElo "2445"]
[BlackElo "2465"]
[Annotator "ChessBase"]
[PlyCount "59"]
[EventDate "2018.06.29"]
[EventType "swiss"]
[EventRounds "9"]
[EventCountry "LTU"]
[SourceTitle "playchess.com"]
[Source "ChessBase"]
[SourceQuality "1"]
[TimeControl "40/5400+30:1800+30"]

1. e4 c5 2. Nf3 e6 3. c4 a6 4. Nc3 Qc7 5. d4 cxd4 6. Nxd4 Nf6 7. Nc2 b6 8. Bd3 Bd6 9. Bg5 Nc6 10. Qe2 Bb7 11. g3 Ne5 12. f4 Nxd3+ 13. Qxd3 Rc8 14. Rf1 Be7 15. e5 Ng8 16. Bxe7 Nxe7 17. O-O-O Bc6 18. Nb4 b5 19. Nxc6 Qxc6 20. cxb5 axb5 21. Kb1 b4 22. Nb5 Rb8 23. Nd6+ Kf8 24. f5 Kg8 25. fxe6 fxe6 26. Nf7 Nd5 27. Rc1 Qa4 28. Nh6+ gxh6 29. Qf3 Nc3+ 30. Rxc3 1-0

[Event "Panevezys Elite 2018"]
[Site "Panevezys"]
[Date "2018.06.30"]
[Round "2.6"]
[White "Brazdzionis, Andrius"]
[Black "Juksta, Karolis"]
[Result "1/2-1/2"]
[ECO "A06"]
[WhiteElo "2252"]
[BlackElo "2187"]
[Annotator "ChessBase"]
[PlyCount "77"]
[EventDate "2018.06.29"]
[EventType "swiss"]
[EventRounds "9"]
[EventCountry "LTU"]
[SourceTitle "playchess.com"]
[Source "ChessBase"]
[SourceQuality "1"]
[TimeControl "40/5400+30:1800+30"]

1. Nf3 d5 2. d4 e6 3. c4 Nf6 4. g3 dxc4 5. Qa4+ Nbd7 6. Bg2 a6 7. Qxc4 b5 8. Qc2 Bb7 9. O-O c5 10. a4 cxd4 11. Nxd4 Bxg2 12. Kxg2 Bc5 13. Nb3 Be7 14. N1d2 O-O 15. Nf3 Rc8 16. Qd1 Nb6 17. axb5 axb5 18. Qxd8 Rfxd8 19. Nbd4 b4 20. Ra6 Bc5 21. Nb3 Nbd5 22. Bg5 Be7 23. Rc1 Rxc1 24. Nxc1 h6 25. Bxf6 Nxf6 26. Nd3 Nd7 27. Ra7 Bf8 28. h4 g6 29. Kh3 e5 30. e4 f6 31. Rb7 Nc5 32. Nxc5 Bxc5 33. Kg2 Rd1 34. Rc7 Bf8 35. Rc2 Kf7 36. Nd2 Ke6 37. Nf1 Rb1 38. Nd2 Rd1 39. Nf1 1/2-1/2

[Event "Panevezys Elite 2018"]
[Site "Panevezys"]
[Date "2018.06.30"]
[Round "2.7"]
[White "Priyanka Nutakki"]
[Black "Vovk, Ilja"]
[Result "0-1"]
[ECO "C55"]
[WhiteElo "2180"]
[BlackElo "2273"]
[Annotator "ChessBase"]
[PlyCount "96"]
[EventDate "2018.06.29"]
[EventType "swiss"]
[EventRounds "9"]
[EventCountry "LTU"]
[SourceTitle "playchess.com"]
[Source "ChessBase"]
[SourceQuality "1"]
[TimeControl "40/5400+30:1800+30"]

1. e4 e5 2. Nf3 Nc6 3. Bc4 Nf6 4. d3 Be7 5. O-O O-O 6. Re1 d6 7. a4 Kh8 8. Nc3 Bg4 9. h3 Bh5 10. Be3 Qd7 11. Nd5 Nxd5 12. exd5 Nd4 13. Bxd4 exd4 14. g4 Bg6 15. Nxd4 Bf6 16. Ne2 h5 17. Nc3 Rae8 18. Qf3 Re5 19. Rxe5 Bxe5 20. Ne2 Bxb2 21. Rb1 Be5 22. Rxb7 Qxa4 23. gxh5 Bh7 24. Rxc7 Qxc2 25. Rxa7 f5 26. d4 Qb1+ 27. Kg2 f4 28. Ba2 Qb6 29. Ra3 Bxd4 30. Rb3 Qa7 31. Nxf4 Kg8 32. Ra3 Qe7 33. Qg4 Qe4+ 34. Rf3 Bf5 35. Qg3 Be5 36. h6 g5 37. Qxg5+ Kh8 38. Bb1 Qxb1 39. Ng6+ Bxg6 40. Rxf8+ Kh7 41. Qe7+ Kxh6 42. Qh4+ Bh5 43. Rg8 Qf5 44. Kg1 Bf6 45. Qg3 Qb1+ 46. Kg2 Qe4+ 47. Kf1 Be2+ 48. Kg1 Bf3 0-1

[Event "Panevezys Elite 2018"]
[Site "Panevezys"]
[Date "2018.06.30"]
[Round "2.8"]
[White "Ratsma, Midas"]
[Black "Kalinowska, Zuzanna"]
[Result "1-0"]
[ECO "E32"]
[WhiteElo "2253"]
[BlackElo "1968"]
[Annotator "ChessBase"]
[PlyCount "69"]
[EventDate "2018.06.29"]
[EventType "swiss"]
[EventRounds "9"]
[EventCountry "LTU"]
[SourceTitle "playchess.com"]
[Source "ChessBase"]
[SourceQuality "1"]
[TimeControl "40/5400+30:1800+30"]

1. d4 Nf6 2. c4 e6 3. Nc3 Bb4 4. Qc2 O-O 5. Nf3 c5 6. dxc5 Na6 7. g3 Nxc5 8. Bg2 Nce4 9. O-O Nxc3 10. bxc3 Be7 11. e4 d6 12. e5 dxe5 13. Nxe5 Qc7 14. Qe2 Bd6 15. Re1 Rb8 16. Rb1 Nd7 17. Bf4 Nb6 18. Rbd1 f6 19. Rxd6 fxe5 20. Bxe5 Nxc4 21. Rxe6 Nxe5 22. Qxe5 Qxe5 23. R6xe5 b5 24. Bd5+ Kh8 25. Re7 a5 26. Ra7 a4 27. Ree7 Bf5 28. Rxg7 Rbd8 29. c4 bxc4 30. Bxc4 Rd2 31. f3 Rc2 32. Rgc7 Rd8 33. Bf1 Rxa2 34. g4 Rg8 35. Bc4 1-0

[Event "Panevezys Elite 2018"]
[Site "Panevezys"]
[Date "2018.06.30"]
[Round "2.9"]
[White "Malinin, Yuri"]
[Black "Parligras, Cosmin"]
[Result "1/2-1/2"]
[ECO "A09"]
[WhiteElo "2176"]
[BlackElo "2231"]
[Annotator "ChessBase"]
[PlyCount "104"]
[EventDate "2018.06.29"]
[EventType "swiss"]
[EventRounds "9"]
[EventCountry "LTU"]
[SourceTitle "playchess.com"]
[Source "ChessBase"]
[SourceQuality "1"]
[TimeControl "40/5400+30:1800+30"]

1. Nf3 d5 2. c4 d4 3. b4 g5 4. Bb2 Bg7 5. e3 e5 6. exd4 exd4 7. Bd3 g4 8. Qe2+ Qe7 9. Bxd4 gxf3 10. Qxe7+ Nxe7 11. Bxg7 Rg8 12. Bc3 Bf5 13. Bxf5 fxg2 14. Rg1 Nxf5 15. f3 Nc6 16. Kf2 O-O-O 17. Rxg2 Rxg2+ 18. Kxg2 Ncd4 19. Na3 Ne2 20. Re1 Nxc3 21. dxc3 Rd2+ 22. Kh3 Rxa2 23. Nb5 a6 24. Re5 axb5 25. Rxf5 bxc4 26. Rc5 b5 27. Rxb5 Rc2 28. Kg4 Rxc3 29. Kf4 Rb3 30. Ke4 h6 31. Rf5 Rxb4 32. Rxf7 c3+ 33. Kd3 Rc4 34. Kc2 Kb7 35. f4 Kb6 36. f5 Kb5 37. Rh7 Rc6 38. f6 Rxf6 39. Rxc7 Kb4 40. Rb7+ Kc4 41. Rc7+ Kd4 42. Rxc3 Rf2+ 43. Kb3 Rxh2 44. Rc6 h5 45. Rc4+ Kd5 46. Rf4 Ke5 47. Rc4 h4 48. Ka3 Kf5 49. Rb4 Rh1 50. Ka2 h3 51. Rb3 Rh2+ 52. Ka3 Rh1 1/2-1/2

[Event "Panevezys Elite 2018"]
[Site "Panevezys"]
[Date "2018.06.30"]
[Round "2.10"]
[White "Bekasovs, Rihards"]
[Black "Stasans, Aivars"]
[Result "1/2-1/2"]
[ECO "A05"]
[WhiteElo "2052"]
[BlackElo "2071"]
[Annotator "NA"]
[PlyCount "103"]
[EventDate "2018.06.29"]
[EventType "swiss"]
[EventRounds "9"]
[EventCountry "LTU"]
[SourceTitle "playchess.com"]
[Source "ChessBase"]
[SourceQuality "1"]
[TimeControl "40/5400+30:1800+30"]

1. Nf3 Nf6 2. c4 g6 3. b3 Bg7 4. Bb2 O-O 5. g3 c5 6. Bg2 Nc6 7. O-O d6 8. d4 cxd4 9. Nxd4 Nxd4 10. Bxd4 Qa5 11. e3 Rb8 12. Bc3 Qc7 13. Nd2 b5 14. Rc1 b4 15. Bd4 e5 16. Bb2 Bb7 17. Bxb7 Rxb7 18. Qf3 Rb6 19. Rfd1 Qc6 20. Qxc6 Rxc6 21. a3 a5 22. axb4 axb4 23. Ra1 Rb8 24. Ra5 Ne8 25. Kf1 f5 26. Ke2 Nc7 27. Rda1 Kf7 28. Ra7 Bf6 29. h4 Ke6 30. e4 h6 31. R1a5 Bd8 32. Ra2 Rbb6 33. f3 Ra6 34. R2xa6 Rxa6 35. Rb7 Ra2 36. Bc1 Na6 37. exf5+ gxf5 38. Rh7 Nc5 39. Rxh6+ Bf6 40. g4 Nxb3 41. Kd1 Nxc1 42. Kxc1 fxg4 43. fxg4 Kf7 44. Ne4 Be7 45. Nxd6+ Bxd6 46. Rxd6 Rg2 47. Rb6 Rxg4 48. Rxb4 Rxh4 49. Rb6 Rxc4+ 50. Kd2 Ke7 51. Ke3 Ra4 52. Rh6 1/2-1/2

[Event "Panevezys Elite 2018"]
[Site "Panevezys"]
[Date "2018.06.30"]
[Round "2.11"]
[White "Vicas, Marijus"]
[Black "Prigodin, Ruslan"]
[Result "1-0"]
[ECO "B12"]
[WhiteElo "2183"]
[BlackElo "2036"]
[Annotator "ChessBase"]
[PlyCount "55"]
[EventDate "2018.06.29"]
[EventType "swiss"]
[EventRounds "9"]
[EventCountry "LTU"]
[SourceTitle "playchess.com"]
[Source "ChessBase"]
[SourceQuality "1"]
[TimeControl "40/5400+30:1800+30"]

1. e4 c6 2. d4 d5 3. e5 Bf5 4. Nf3 e6 5. Be2 c5 6. Be3 cxd4 7. Nxd4 Ne7 8. c4 Nbc6 9. Qa4 a6 10. cxd5 b5 11. Nxc6 Nxc6 12. Qf4 Nb4 13. O-O Nxd5 14. Qg3 Nxe3 15. Qxe3 Rc8 16. Rd1 Qc7 17. a4 Bc5 18. Qg3 O-O 19. axb5 axb5 20. Bxb5 Rb8 21. Nc3 Bb4 22. Bf1 Rfc8 23. Nb5 Qc2 24. Nd6 Rc5 25. Nxf7 Bg6 26. Ng5 Qxb2 27. Nxe6 Rxe5 28. Rab1 1-0

[Event "Panevezys Elite 2018"]
[Site "Panevezys"]
[Date "2018.06.30"]
[Round "2.12"]
[White "Tsiganova, Monika"]
[Black "Maryasin, Boris"]
[Result "0-1"]
[ECO "A00"]
[WhiteElo "2131"]
[BlackElo "2304"]
[Annotator "ChessBase"]
[PlyCount "52"]
[EventDate "2018.06.29"]
[EventType "swiss"]
[EventRounds "9"]
[EventCountry "LTU"]
[SourceTitle "playchess.com"]
[Source "ChessBase"]
[SourceQuality "1"]
[TimeControl "40/5400+30:1800+30"]

1. d4 Nf6 2. c4 e6 3. Nf3 d5 4. Nc3 dxc4 5. e3 a6 6. Bxc4 b5 7. Bd3 Bb7 8. O-O c5 9. Qe2 Nc6 10. Rd1 Qc7 11. a4 b4 12. Ne4 cxd4 13. exd4 Nd5 14. Bd2 Be7 15. Rac1 Qb6 16. Neg5 Nxd4 17. Nxd4 Qxd4 18. Bb5+ Kf8 19. Bc6 Bxc6 20. Rxc6 Rd8 21. Qf3 Qf6 22. Rdc1 h6 23. Qh3 Kg8 24. Nf3 Qxb2 25. Qg3 Nc3 26. Qe5 Rxd2 0-1

[Event "Panevezys Elite 2018"]
[Site "Panevezys"]
[Date "2018.06.30"]
[Round "2.13"]
[White "Sinitsina, Anastassia"]
[Black "Berzina, Ilze"]
[Result "0-1"]
[ECO "A00"]
[WhiteElo "2101"]
[BlackElo "2173"]
[Annotator "ChessBase"]
[PlyCount "82"]
[EventDate "2018.06.29"]
[EventType "swiss"]
[EventRounds "9"]
[EventCountry "LTU"]
[SourceTitle "playchess.com"]
[Source "ChessBase"]
[SourceQuality "1"]
[TimeControl "40/5400+30:1800+30"]

1. e4 c6 2. d4 d5 3. Nd2 dxe4 4. Nxe4 Nd7 5. Nf3 Ngf6 6. Neg5 e6 7. Bd3 h6 8. Ne4 Nxe4 9. Bxe4 Nf6 10. Bd3 b6 11. Qe2 Bb7 12. Bd2 Qc7 13. O-O-O O-O-O 14. Kb1 Bd6 15. c4 c5 16. dxc5 Bxc5 17. Bc3 Rhe8 18. h3 Nh5 19. g3 Nf6 20. Rhe1 Kb8 21. Bc2 Ka8 22. Ne5 Rf8 23. f4 h5 24. g4 hxg4 25. hxg4 Bd6 26. g5 Ng8 27. Be4 Ne7 28. Rf1 Nf5 29. Bxf5 exf5 30. b3 Rfe8 31. Qb2 Be4+ 32. Ka1 Bc5 33. a3 f6 34. gxf6 gxf6 35. Rxd8+ Qxd8 36. Ng6 Qd3 37. Rc1 Qg3 38. b4 Be3 39. Re1 Bd4 40. Bxd4 Qxe1+ 41. Ka2 Qg3 0-1

[Event "Panevezys Elite 2018"]
[Site "Panevezys"]
[Date "2018.06.30"]
[Round "3.4"]
[White "Harutjunyan, Gevorg"]
[Black "Ratsma, Midas"]
[Result "1-0"]
[ECO "A05"]
[WhiteElo "2418"]
[BlackElo "2253"]
[Annotator "ChessBase"]
[PlyCount "75"]
[EventDate "2018.06.29"]
[EventType "swiss"]
[EventRounds "9"]
[EventCountry "LTU"]
[SourceTitle "playchess.com"]
[Source "ChessBase"]
[SourceQuality "1"]
[TimeControl "40/5400+30:1800+30"]

1. Nf3 Nf6 2. g3 e6 3. Bg2 Be7 4. c4 d5 5. d4 O-O 6. O-O dxc4 7. Qc2 a6 8. a4 Bd7 9. Qxc4 Bc6 10. Bg5 Bd5 11. Qc2 Nc6 12. Bxf6 gxf6 13. e4 Nb4 14. Qe2 Bc6 15. Nc3 b6 16. d5 Bb7 17. Rad1 Bd6 18. dxe6 fxe6 19. Qc4 Kh8 20. Nd4 Qe7 21. Nxe6 Qf7 22. Qb3 Rfe8 23. Nd4 Qxb3 24. Nxb3 Be5 25. Rd2 Bc6 26. a5 bxa5 27. Nxa5 Bb5 28. Rfd1 c5 29. Bf1 Rab8 30. Nc4 Bd4 31. Nd6 Re6 32. Ndxb5 axb5 33. Nxb5 Nc6 34. Bc4 Re7 35. b3 Rb6 36. Kg2 Kg7 37. Nd6 Ra7 38. Nc8 1-0

[Event "Panevezys Elite 2018"]
[Site "Panevezys"]
[Date "2018.06.30"]
[Round "3.5"]
[White "Maryasin, Boris"]
[Black "Bjerre, Jonas Buhl"]
[Result "1/2-1/2"]
[ECO "B53"]
[WhiteElo "2304"]
[BlackElo "2436"]
[Annotator "ChessBase"]
[PlyCount "31"]
[EventDate "2018.06.29"]
[EventType "swiss"]
[EventRounds "9"]
[EventCountry "LTU"]
[SourceTitle "playchess.com"]
[Source "ChessBase"]
[SourceQuality "1"]
[TimeControl "40/5400+30:1800+30"]

1. e4 c5 2. Nf3 d6 3. d4 cxd4 4. Qxd4 Nc6 5. Bb5 Bd7 6. Bxc6 Bxc6 7. Nc3 Nf6 8. Bg5 e6 9. O-O-O Be7 10. Qd3 Qa5 11. h4 h6 12. Bd2 Qa6 13. Nd4 Qxd3 14. cxd3 Bd7 15. f3 O-O-O 16. g4 1/2-1/2

[Event "Panevezys Elite 2018"]
[Site "Panevezys"]
[Date "2018.06.30"]
[Round "3.7"]
[White "Laurusas, Tomas"]
[Black "Van Osch, Mees"]
[Result "1-0"]
[ECO "E62"]
[WhiteElo "2465"]
[BlackElo "2324"]
[Annotator "RC"]
[PlyCount "41"]
[EventDate "2018.06.29"]
[EventType "swiss"]
[EventRounds "9"]
[EventCountry "LTU"]
[SourceTitle "playchess.com"]
[Source "ChessBase"]
[SourceQuality "1"]
[TimeControl "40/5400+30:1800+30"]

1. d4 Nf6 2. Nf3 g6 3. g3 Bg7 4. Bg2 O-O 5. O-O d6 6. c4 Nc6 7. Nc3 e5 8. d5 Nb8 9. c5 Na6 10. cxd6 cxd6 11. Nd2 Rb8 12. a4 Ne8 13. Nb5 Ra8 14. Nc4 Nac7 15. Be3 Nxb5 16. axb5 Bd7 17. Qb3 a6 18. Nb6 Nc7 19. Nxa8 Qxa8 20. bxa6 bxa6 21. Qb6 1-0

[Event "Panevezys Elite 2018"]
[Site "Panevezys"]
[Date "2018.06.30"]
[Round "3.8"]
[White "Juksta, Karolis"]
[Black "Malinin, Yuri"]
[Result "0-1"]
[ECO "A40"]
[WhiteElo "2187"]
[BlackElo "2176"]
[Annotator "ChessBase"]
[PlyCount "62"]
[EventDate "2018.06.29"]
[EventType "swiss"]
[EventRounds "9"]
[EventCountry "LTU"]
[SourceTitle "playchess.com"]
[Source "ChessBase"]
[SourceQuality "1"]
[TimeControl "40/5400+30:1800+30"]

1. d4 g6 2. c4 Bg7 3. e4 d6 4. Nc3 e5 5. dxe5 dxe5 6. Qxd8+ Kxd8 7. f4 Nc6 8. Nf3 Be6 9. Be3 Nf6 10. Rd1+ Kc8 11. Be2 b6 12. g3 Kb7 13. O-O Rhe8 14. Kg2 exf4 15. gxf4 Nxe4 16. Nxe4 Bf5 17. Bc1 Bxe4 18. Kg1 Rad8 19. Rxd8 Nxd8 20. Kf2 Bc6 21. Rd1 Ne6 22. b4 Kc8 23. Be3 Rd8 24. Rxd8+ Kxd8 25. Bd2 f6 26. Kg3 Ke7 27. Bd3 Kf7 28. Kf2 Bf8 29. a3 Bd6 30. Kg3 g5 31. Bxh7 gxf4+ 0-1

[Event "Panevezys Elite 2018"]
[Site "Panevezys"]
[Date "2018.06.30"]
[Round "3.10"]
[White "Kalinowska, Zuzanna"]
[Black "Priyanka Nutakki"]
[Result "0-1"]
[ECO "E34"]
[WhiteElo "1968"]
[BlackElo "2180"]
[Annotator "ChessBase"]
[PlyCount "86"]
[EventDate "2018.06.29"]
[EventType "swiss"]
[EventRounds "9"]
[EventCountry "LTU"]
[SourceTitle "playchess.com"]
[Source "ChessBase"]
[SourceQuality "1"]
[TimeControl "40/5400+30:1800+30"]

1. d4 Nf6 2. c4 e6 3. Nc3 Bb4 4. Qc2 d5 5. e3 O-O 6. Nf3 c5 7. dxc5 Nbd7 8. cxd5 Nxd5 9. c6 bxc6 10. Bd3 h6 11. O-O Bb7 12. Rd1 Qe7 13. Bd2 Rac8 14. a3 Bxc3 15. bxc3 c5 16. Rab1 N5b6 17. c4 Bc6 18. Qc3 Bxf3 19. gxf3 Qg5+ 20. Kh1 Qh5 21. Be2 e5 22. Rg1 Rc6 23. Rg3 Rg6 24. Rbg1 Re8 25. Qd3 Rxg3 26. Rxg3 e4 27. fxe4 Ne5 28. Bxh5 Nxd3 29. Kg2 Nxc4 30. Bc3 g6 31. Be2 Rd8 32. f4 Kh7 33. h4 Nxa3 34. h5 Nc1 35. hxg6+ fxg6 36. Bh5 Rg8 37. Bxg6+ Rxg6 38. Rxg6 Kxg6 39. Bb2 Nc4 40. Bxc1 a5 41. e5 a4 42. e4 a3 43. f5+ Kg7 0-1

[Event "Panevezys Elite 2018"]
[Site "Panevezys"]
[Date "2018.06.30"]
[Round "3.12"]
[White "Stasans, Aivars"]
[Black "Prigodin, Ruslan"]
[Result "1/2-1/2"]
[ECO "A00"]
[WhiteElo "2071"]
[BlackElo "2036"]
[Annotator "NA"]
[PlyCount "48"]
[EventDate "2018.06.29"]
[EventType "swiss"]
[EventRounds "9"]
[EventCountry "LTU"]
[SourceTitle "playchess.com"]
[Source "ChessBase"]
[SourceQuality "1"]
[TimeControl "40/5400+30:1800+30"]

1. e4 c6 2. d4 d5 3. Nc3 dxe4 4. Nxe4 Nd7 5. Nf3 Ngf6 6. Nxf6+ Nxf6 7. Ne5 Nd7 8. Bf4 Nxe5 9. Bxe5 Bf5 10. Bd3 Bxd3 11. Qxd3 e6 12. O-O Qd7 13. Rad1 f6 14. Bg3 Bd6 15. Rfe1 Bxg3 16. hxg3 O-O 17. Qb3 Rfe8 18. f4 Qd5 19. c4 Qd7 20. Rd3 Rad8 21. Red1 Qf7 22. Qa4 a6 23. Qb4 Rd7 24. Qd2 Red8 1/2-1/2

[Event "Panevezys Elite 2018"]
[Site "Panevezys"]
[Date "2018.06.30"]
[Round "3.13"]
[White "Sinitsina, Anastassia"]
[Black "Tsiganova, Monika"]
[Result "1-0"]
[ECO "A00"]
[WhiteElo "2101"]
[BlackElo "2131"]
[Annotator "ChessBase"]
[PlyCount "107"]
[EventDate "2018.06.29"]
[EventType "swiss"]
[EventRounds "9"]
[EventCountry "LTU"]
[SourceTitle "playchess.com"]
[Source "ChessBase"]
[SourceQuality "1"]
[TimeControl "40/5400+30:1800+30"]

1. e4 c5 2. Nf3 d6 3. d4 cxd4 4. Nxd4 Nf6 5. f3 e5 6. Bb5+ Nbd7 7. Nf5 d5 8. exd5 a6 9. Ba4 b5 10. Bb3 Nb6 11. Ne3 Bc5 12. Nc3 O-O 13. Qd3 Bb7 14. Ne4 Bxe3 15. Nxf6+ Qxf6 16. Bxe3 Rfd8 17. Bxb6 Qxb6 18. O-O-O a5 19. a3 a4 20. Ba2 b4 21. Bc4 Qc5 22. Rhe1 Rac8 23. b3 axb3 24. cxb3 Rxd5 25. Qc2 Rd4 26. axb4 Qxb4 27. Rxe5 Qa3+ 28. Kb1 Ra8 29. Re8+ Rxe8 30. Rxd4 Ra8 31. Qb2 Qc5 32. Qd2 Qb6 33. Kb2 Qf6 34. Qf4 Qe7 35. Qxf7+ Qxf7 36. Bxf7+ Kxf7 37. Rd7+ Kf6 38. Rxb7 Re8 39. Rc7 Re2+ 40. Rc2 Re3 41. b4 Ke5 42. Kc1 Kd6 43. Kd1 Rb3 44. Rc4 Rb2 45. Rg4 g6 46. Ke1 Ke6 47. Kf1 Kf5 48. h3 h5 49. Rc4 g5 50. Kg1 h4 51. Rg4 Rd2 52. Kf1 Rc2 53. Ke1 Rb2 54. Kd1 1-0

[Event "Panevezys Elite 2018"]
[Site "Panevezys"]
[Date "2018.07.01"]
[Round "4.2"]
[White "Harutjunyan, Gevorg"]
[Black "Stremavicius, Titas"]
[Result "0-1"]
[ECO "A06"]
[WhiteElo "2418"]
[BlackElo "2448"]
[Annotator "ChessBase"]
[PlyCount "68"]
[EventDate "2018.06.29"]
[EventType "swiss"]
[EventRounds "9"]
[EventCountry "LTU"]
[SourceTitle "playchess.com"]
[Source "ChessBase"]
[SourceQuality "1"]
[TimeControl "40/5400+30:1800+30"]

1. Nf3 d5 2. g3 Nf6 3. Bg2 e6 4. O-O c5 5. d4 cxd4 6. Nxd4 e5 7. Nb3 Be6 8. f4 exf4 9. gxf4 g6 10. Nc3 Nc6 11. Be3 Bg7 12. Nd4 Ng4 13. Nxe6 fxe6 14. Bc5 Qa5 15. e3 h5 16. b4 Nxb4 17. Bd4 Bxd4 18. Qxd4 O-O-O 19. Nd1 Rh7 20. h3 Nc6 21. Qd3 Nf6 22. Qxg6 Rf8 23. Kh2 Qc7 24. c4 Rg7 25. Qd3 Rfg8 26. Rf2 Ne5 27. fxe5 Qxe5+ 28. Kh1 Qxa1 29. cxd5 Nxd5 30. Rc2+ Kb8 31. e4 Ne3 32. Qd6+ Ka8 33. Rd2 a6 34. e5 Nxg2 0-1

[Event "Panevezys Elite 2018"]
[Site "Panevezys"]
[Date "2018.07.01"]
[Round "4.4"]
[White "Grib, Roman"]
[Black "Maryasin, Boris"]
[Result "1-0"]
[ECO "B40"]
[WhiteElo "2445"]
[BlackElo "2304"]
[Annotator "ChessBase"]
[PlyCount "95"]
[EventDate "2018.06.29"]
[EventType "swiss"]
[EventRounds "9"]
[EventCountry "LTU"]
[SourceTitle "playchess.com"]
[Source "ChessBase"]
[SourceQuality "1"]
[TimeControl "40/5400+30:1800+30"]

1. e4 c5 2. Nf3 e6 3. c4 Nc6 4. Nc3 Nd4 5. Nxd4 cxd4 6. Ne2 e5 7. Ng3 g6 8. Be2 h5 9. O-O Bh6 10. d3 Qf6 11. Bxh6 Nxh6 12. f4 d6 13. fxe5 Qxe5 14. Qd2 h4 15. Nh1 g5 16. Nf2 g4 17. Nh1 Be6 18. b4 O-O-O 19. Qf4 Rdg8 20. g3 Rg6 21. gxh4 Ng8 22. c5 Qxf4 23. Rxf4 dxc5 24. Rc1 b6 25. bxc5 b5 26. Ng3 Rxh4 27. c6 Rf6 28. Nf5 Bxf5 29. exf5 Ne7 30. Rxd4 Nxc6 31. Bf3 Kc7 32. Bg2 Kb6 33. Rd7 Rhh6 34. Be4 a5 35. Kg2 b4 36. Kg3 a4 37. Rc4 Ka5 38. Rb7 Rh3+ 39. Kxg4 Rhh6 40. d4 Rd6 41. Rc5+ Ka6 42. Rxc6+ Rxc6 43. Bxc6 Rxc6 44. Rxb4 Ka5 45. Rb2 a3 46. Rd2 Kb4 47. d5 Rc8 48. Rd3 1-0

[Event "Panevezys Elite 2018"]
[Site "Panevezys"]
[Date "2018.07.01"]
[Round "4.5"]
[White "Bjerre, Jonas Buhl"]
[Black "Brazdzionis, Andrius"]
[Result "1-0"]
[ECO "B07"]
[WhiteElo "2436"]
[BlackElo "2252"]
[Annotator "ChessBase"]
[PlyCount "121"]
[EventDate "2018.06.29"]
[EventType "swiss"]
[EventRounds "9"]
[EventCountry "LTU"]
[SourceTitle "playchess.com"]
[Source "ChessBase"]
[SourceQuality "1"]
[TimeControl "40/5400+30:1800+30"]

1. e4 d6 2. d4 Nf6 3. Nc3 g6 4. Be3 Bg7 5. Qd2 c6 6. Bh6 Bxh6 7. Qxh6 Qa5 8. Bd3 b5 9. Nf3 Nbd7 10. O-O b4 11. Ne2 Qh5 12. Qd2 O-O 13. Qxb4 c5 14. Qa5 Bb7 15. Ng3 Qg4 16. d5 Nb6 17. c4 e5 18. h3 Qf4 19. Ne2 Qh6 20. Nc3 Bc8 21. Nb5 Bxh3 22. Qd2 Qh5 23. Qg5 Qxg5 24. Nxg5 Bg4 25. f3 Bd7 26. Nxd6 h6 27. Nh3 Bxh3 28. gxh3 Nh5 29. Rfb1 Nf4 30. Bf1 a5 31. a3 a4 32. b4 axb3 33. Rxb3 Ra6 34. Nb7 Nd7 35. Rb5 Rc8 36. Na5 Rca8 37. Nb3 Rc8 38. Rb7 Rb6 39. Nxc5 Rxc5 40. Rxd7 Rb2 41. Ra7 Kg7 42. Ra4 g5 43. Rb4 Rd2 44. a4 Ra5 45. Rb5 Ra6 46. a5 Ng6 47. c5 Nh4 48. Rb3 Rf6 49. Raa3 g4 50. hxg4 h5 51. gxh5 Rh6 52. Re3 Rxh5 53. Re2 Rd1 54. a6 Ng6 55. Rg2 Kf6 56. a7 Nf4 57. Kf2 Nxg2 58. Bxg2 Rd2+ 59. Ke3 Rxg2 60. a8=Q Rhh2 61. Qa6+ 1-0